bitfinex/quotes_ETHUSD_20260214
["timestamp","ask_amount","ask_price","bid_price","bid_amount"]
[1771072020670,1.67694349,2098.0,2097.4,1.6795766]
[1771072021800,1.67696545,2098.0,2097.4,1.6795766]
[1771072022095,0.4822477,2097.9,2097.3,1.19200877]
[1771072022303,0.4822477,2097.9,2097.5,0.5]
[1771072023576,1.19263301,2098.0,2097.5,0.5]
[1771072023577,0.001,2098.0,2097.5,1.69189043]
[1771072023804,0.001,2098.0,2097.5,2.16785791]
[1771072024674,0.001,2098.0,2097.5,0.97596748]
[1771072024875,0.001,2098.0,2097.5,0.5]
[1771072025485,0.4832477,2098.0,2097.5,0.5]
[1771072026083,1.67391555,2097.9,2097.5,0.5]
[1771072026489,0.4822477,2097.8,2097.5,0.5]
[1771072028715,1.19170115,2097.9,2097.5,0.5]
[1771072029211,1.67394885,2097.9,2097.5,0.5]
[1771072031911,0.4822477,2097.8,2097.0,3.36010635]
[1771072032284,0.4822477,2097.8,2097.1,0.47596748]
[1771072033383,1.67394885,2097.9,2097.1,0.47596748]
[1771072033879,1.67394885,2097.9,2097.2,1.66803309]
[1771072036220,0.4822477,2097.8,2097.1,1.19206986]
[1771072037188,0.4822477,2097.8,2097.2,0.47596748]
[1771072038334,1.67402917,2097.7,2097.1,1.19206986]
[1771072039339,0.4822477,2097.6,2097.0,1.692]
[1771072039507,0.4822477,2097.6,2097.0,2.88417152]
[1771072039706,0.4822477,2097.6,2097.0,3.360139]
[1771072041637,1.19189511,2097.5,2097.0,3.360139]
[1771072042451,1.19189511,2097.5,2097.0,2.16796748]
[1771072042816,1.19189511,2097.5,2097.0,3.36014039]
[1771072043137,0.4822477,2097.4,2096.9,0.001]
[1771072043520,1.19200877,2097.3,2096.9,0.001]
[1771072043716,1.67425647,2097.3,2096.9,0.001]
[1771072043918,0.4822477,2097.2,2096.9,0.001]
[1771072044244,0.4822477,2097.0,2096.8,0.0011]
[1771072044547,0.4822477,2096.8,2096.3,0.0011]
[1771072044715,0.4822477,2096.8,2095.5,0.18795624]
[1771072044716,0.4822477,2096.2,2095.3,0.0055]
[1771072044911,4.89957755,2096.1,2095.5,0.0055]
[1771072045143,2.76332985,2096.0,2095.5,0.0055]
[1771072045321,2.76332985,2095.9,2095.5,0.0055]
[1771072045528,2.76332985,2095.8,2095.6,0.0055]
[1771072045737,1.654,2096.0,2095.4,1.6745571]
[1771072045933,2.83342915,2095.9,2095.4,0.48146748]
[1771072046133,2.83342915,2095.8,2095.4,0.48146748]
[1771072046442,2.84675723,2096.0,2095.4,0.48146748]
[1771072046443,1.654,2096.0,2095.4,0.48146748]
[1771072046643,1.67479524,2096.4,2095.6,0.47596748]
[1771072046946,4.48381182,2096.3,2095.7,0.0055]
[1771072047247,2.82981182,2096.2,2095.7,0.0055]
[1771072047617,1.67468221,2096.6,2095.9,1.192805]
[1771072047819,3.32868221,2096.6,2095.9,1.192805]
[1771072051027,1.67458103,2096.8,2096.0,0.48146748]
[1771072051361,1.655,2096.7,2096.0,0.48146748]
[1771072051543,1.68797594,2097.0,2096.0,0.48146748]
[1771072051857,1.655,2096.9,2096.0,0.48146748]
[1771072052154,1.655,2096.9,2096.2,0.48919041]
[1771072052365,4.08358066,2097.1,2096.3,0.48919041]
[1771072052664,0.49576865,2097.5,2096.5,0.48919041]
[1771072053132,1.68767263,2097.5,2096.5,0.48919041]
[1771072054360,0.49576865,2097.3,2094.7,0.001]
[1771072054564,0.49576865,2097.3,2095.0,1.29327984]
[1771072054565,0.49576865,2096.2,2095.0,1.29327984]
[1771072054736,0.49576865,2096.0,2095.0,0.1]
[1771072054939,0.914,2095.9,2095.2,1.19316116]
[1771072055260,0.914,2095.9,2095.1,4.14429334]
[1771072055457,0.49576865,2095.8,2095.1,4.14429334]
[1771072056730,1.19291883,2095.7,2095.1,4.14429334]
[1771072057783,1.19291883,2095.7,2095.1,5.33754711]
[1771072059873,1.19291883,2095.7,2095.1,4.14429334]
[1771072060080,1.19291883,2095.7,2095.1,5.33754857]
[1771072060231,3.34965483,2095.8,2095.1,5.33754857]
[1771072061034,4.77079852,2096.1,2095.2,0.46458533]
[1771072061234,5.24835962,2096.1,2095.2,0.46458533]
[1771072061466,6.90935962,2096.1,2095.2,0.46458533]
[1771072062533,0.4775611,2096.0,2095.2,0.46458533]
[1771072062868,0.4775611,2096.0,2095.2,3.0672949]
[1771072063044,1.192805,2095.9,2095.2,4.2604586]
[1771072063564,0.4775611,2095.8,2095.2,2.60270957]
[1771072063761,0.4775611,2095.8,2095.2,3.79591029]
[1771072064936,0.4775611,2095.8,2095.2,2.60270957]
[1771072065236,1.19291883,2095.7,2095.1,1.19422677]
[1771072065835,1.19291883,2095.7,2095.1,0.001]
[1771072065836,1.67047993,2095.7,2095.1,0.001]
[1771072066136,1.19291883,2095.7,2095.1,0.001]
[1771072067561,1.67047993,2095.7,2095.1,0.001]
[1771072068163,1.663,2095.6,2095.1,0.001]
[1771072068971,1.19291883,2095.7,2095.1,0.001]
[1771072069161,1.663,2095.6,2095.1,0.001]
[1771072069874,1.664,2095.7,2095.1,0.001]
[1771072070871,1.19286191,2095.8,2095.1,0.001]
[1771072071041,1.664,2095.7,2095.1,0.001]
[1771072072375,2.85696499,2095.7,2095.1,0.001]
[1771072073077,1.665,2095.7,2095.1,0.001]
[1771072074942,1.67040518,2095.9,2095.1,0.46558533]
[1771072075147,3.33640518,2095.9,2095.1,0.46558533]
[1771072075574,0.4775611,2095.8,2095.1,0.46558533]
[1771072075776,0.4775611,2095.8,2095.1,0.001]
[1771072077167,1.67047993,2095.7,2095.1,0.001]
[1771072077679,2.85884548,2095.9,2095.2,0.46458533]
[1771072077885,1.667,2095.8,2095.3,0.46558533]
[1771072080094,1.19284548,2095.9,2095.3,1.65867996]
[1771072080282,1.667,2095.8,2095.3,1.65867996]
[1771072081505,1.667,2095.8,2095.3,0.001]
[1771072082498,1.19291883,2095.7,2095.3,0.001]
[1771072083402,1.67881965,2095.7,2095.3,0.001]
[1771072083984,0.48590082,2095.6,2095.3,0.001]
[1771072084317,0.48590082,2095.6,2095.1,0.001]
[1771072084507,1.67892715,2095.6,2095.1,0.001]
[1771072087090,0.48590082,2095.5,2095.1,0.001]
[1771072087716,1.671,2095.4,2095.1,0.001]
[1771072093305,2.86410636,2095.4,2095.1,0.001]
[1771072093502,3.35000718,2095.4,2095.1,0.001]
[1771072093832,2.15690082,2095.4,2095.1,0.001]
[1771072094132,3.34999276,2095.4,2095.1,0.001]
[1771072094365,3.34999276,2095.4,2095.0,0.1011]
[1771072094623,3.3499946,2095.4,2095.0,0.1011]
[1771072099539,2.15690082,2095.4,2095.0,1.29441067]
[1771072099948,1.671,2095.4,2095.0,1.29441067]
[1771072100475,1.673,2095.4,2095.1,0.49949866]
[1771072100744,1.673,2095.4,2095.0,1.29441067]
[1771072101642,1.673,2095.4,2095.0,1.29440798]
[1771072101887,1.673,2095.4,2095.0,0.1011]
[1771072102243,1.673,2095.4,2095.0,1.29440133]
[1771072104158,1.673,2095.5,2095.1,0.49949866]
[1771072104518,1.673,2095.5,2095.0,1.29440133]
[1771072105549,1.673,2095.5,2095.0,0.1011]
[1771072105777,2.15890082,2095.5,2095.0,0.1011]
[1771072106069,0.48590082,2095.4,2095.0,0.1011]
[1771072106272,1.67902975,2095.4,2095.0,0.1011]
[1771072108279,1.67910433,2095.2,2094.9,1.63042541]
[1771072111963,0.48590082,2095.2,2094.9,1.63042541]
[1771072112167,1.67911667,2095.2,2094.9,1.63042541]
[1771072113589,0.48590082,2095.2,2094.9,1.63042541]
[1771072114084,1.67459135,2095.3,2094.9,1.63042541]
[1771072116291,0.4814064,2095.2,2094.9,1.63042541]
[1771072116757,0.4814064,2095.0,2094.8,0.0011]
[1771072116956,1.67476333,2095.0,2094.7,0.001]
[1771072117787,1.6747336,2095.0,2094.7,0.001]
[1771072119691,1.6747336,2095.0,2094.5,0.0011]
[1771072121678,1.1933272,2095.0,2094.5,0.0011]
[1771072123202,1.66512515,2095.0,2094.5,0.0011]
[1771072124899,1.692,2094.9,2094.5,0.50075882]
[1771072125802,0.47179795,2094.3,2092.8,0.24754577]
[1771072126001,0.24750979,2093.3,2092.9,0.49965882]
[1771072126299,0.73650979,2093.3,2092.9,0.20064241]
[1771072126690,0.73650979,2093.3,2092.8,1.19457024]
[1771072126897,2.82765292,2093.2,2092.8,1.19457024]
[1771072127076,2.82765292,2093.1,2092.8,1.19457024]
[1771072127276,0.24750979,2093.3,2092.8,1.19457024]
[1771072127499,0.24750979,2093.3,2092.6,4.77870147]
[1771072127500,2.82332769,2093.2,2092.6,4.77870147]
[1771072127804,2.82332769,2093.1,2092.6,4.77870147]
[1771072127984,2.82332769,2093.0,2092.6,4.77870147]
[1771072128176,0.24750979,2093.3,2092.6,4.77870147]
[1771072128378,2.81946991,2093.2,2092.6,4.77870147]
[1771072128580,2.81946991,2093.1,2092.6,1.19468603]
[1771072128899,1.44179965,2093.3,2092.6,1.19468603]
[1771072129106,2.81969383,2093.2,2092.6,1.19468603]
[1771072129286,2.81969383,2093.1,2092.6,1.19468603]
[1771072129478,1.44180687,2093.3,2092.6,1.19468603]
[1771072129678,2.81668544,2093.2,2092.6,1.19468603]
[1771072129879,0.24750979,2093.3,2092.6,1.19468603]
[1771072130290,2.81449278,2093.2,2092.6,1.19468603]
[1771072130602,0.24750979,2093.3,2092.6,1.69434485]
[1771072130795,2.81455548,2093.2,2092.7,0.49965882]
[1771072130996,0.24750979,2093.3,2092.7,0.49965882]
[1771072132198,1.698,2093.4,2092.8,1.69423068]
[1771072132394,0.47179795,2093.6,2092.8,1.69423068]
[1771072132581,4.50849314,2093.5,2092.8,1.69423068]
[1771072132778,2.81149314,2093.4,2092.8,1.69423068]
[1771072132998,0.47179795,2093.6,2092.8,1.69423068]
[1771072133208,4.50762193,2093.5,2092.9,0.49965882]
[1771072133406,1.697,2093.6,2092.9,0.49965882]
[1771072133610,2.26782017,2093.8,2092.9,0.49965882]
[1771072133784,4.50757564,2093.7,2092.9,0.49965882]
[1771072133985,2.26782017,2093.8,2092.9,0.49965882]
[1771072134192,2.81035571,2093.7,2093.1,0.49965882]
[1771072134386,1.79602222,2093.8,2093.1,0.49965882]
[1771072134578,2.81023289,2093.7,2093.1,0.49965882]
[1771072134778,0.28136038,2093.8,2093.0,1.19445771]
[1771072134976,1.68279869,2094.2,2093.1,30.0]
[1771072135214,3.31027994,2094.1,2093.1,30.0]
[1771072135513,2.81057401,2094.0,2093.1,30.0]
[1771072136409,3.31027994,2094.0,2093.2,1.19434358]
[1771072136608,0.49970593,2094.0,2093.2,1.19434358]
[1771072136793,2.81163044,2093.9,2093.2,1.19434358]
[1771072136983,0.49970593,2093.8,2093.2,1.19434358]
[1771072138583,0.49970593,2093.8,2093.0,4.77782925]
[1771072143410,0.49970593,2093.8,2092.6,4.77783086]
[1771072143411,2.81477695,2093.7,2092.3,0.34177508]
[1771072143723,2.81477695,2093.7,2091.2,1.19544495]
[1771072143724,0.49915593,2092.7,2091.2,1.19544495]
[1771072143930,0.49915593,2092.5,2091.3,0.7701]
[1771072144136,3.31393288,2092.4,2091.4,30.0]
[1771072144301,2.81477695,2092.3,2091.5,30.0]
[1771072144488,0.49915593,2092.4,2091.5,30.0]
[1771072144684,0.49915593,2092.4,2091.6,0.0011]
[1771072144911,0.49915593,2092.4,2091.8,1.19514293]
[1771072145105,1.19459937,2092.8,2091.8,1.19514293]
[1771072145305,3.3103372,2092.7,2091.9,0.0011]
[1771072145514,2.81118127,2092.6,2091.9,0.0011]
[1771072146092,2.81118127,2092.5,2091.9,0.0011]
[1771072146286,0.49915593,2092.7,2091.9,0.0011]
[1771072146517,2.81089895,2092.6,2091.8,1.19514293]
[1771072146826,2.81089895,2092.5,2092.3,0.0011]
[1771072147122,0.49915593,2092.7,2092.3,0.0011]
[1771072147293,4.77788289,2093.0,2092.4,0.0011]
[1771072147294,2.81073109,2092.6,2092.4,0.0011]
[1771072147492,2.81073109,2092.5,2092.4,0.0011]
[1771072147692,2.81073109,2092.7,2092.4,0.0011]
[1771072147888,2.81073109,2092.6,2092.4,0.0011]
[1771072148125,2.81159919,2092.5,2092.4,0.0011]
[1771072149234,0.49915593,2092.8,2092.4,0.0011]
[1771072150007,0.49915593,2092.8,2092.3,0.0011]
[1771072150298,0.49915593,2092.8,2092.3,0.0022]
[1771072150299,1.69373011,2092.8,2092.3,0.0022]
[1771072150501,0.49915593,2092.7,2092.3,0.0022]
[1771072152004,1.6937861,2092.7,2092.3,0.0022]
[1771072152217,0.49915593,2092.6,2092.3,0.0022]
[1771072153724,0.49915593,2092.8,2092.3,0.0022]
[1771072156638,0.49915593,2093.0,2092.3,0.0022]
[1771072157530,0.49915593,2093.0,2092.4,0.0011]
[1771072158038,0.49915593,2093.0,2092.4,1.19590022]
[1771072158242,0.49915593,2093.0,2092.4,0.0011]
[1771072158243,0.49915593,2092.9,2092.4,0.0011]
[1771072159013,0.49915593,2092.9,2092.3,2.89691475]
[1771072159345,0.49915593,2092.9,2092.5,0.0011]
[1771072162729,0.50015593,2093.1,2092.6,0.0011]
[1771072162940,0.49915593,2093.0,2092.4,0.0011]
[1771072164959,0.49915593,2093.0,2091.2,0.0011]
[1771072165129,0.49915593,2092.0,2090.8,0.33912156]
[1771072165325,0.49915593,2091.8,2090.9,0.0011]
[1771072165558,0.1024,2092.2,2090.9,0.0011]
[1771072165559,0.803,2091.7,2090.9,0.0011]
[1771072165855,0.49915593,2091.6,2090.9,0.0011]
[1771072166233,0.49915593,2091.6,2090.3,4.78399311]
[1771072166234,0.49915593,2091.6,2090.2,1.33412491]
[1771072166436,0.49915593,2091.5,2090.2,1.33412491]
[1771072166646,0.49915593,2091.3,2090.2,1.33412491]
[1771072167421,0.49915593,2091.3,2090.2,1.82487474]
[1771072168743,0.49915593,2091.3,2090.4,1.19594336]
[1771072169043,0.49915593,2091.3,2090.5,1.711]
[1771072169249,1.69412748,2092.1,2090.9,0.49074983]
[1771072169545,1.69412748,2092.1,2091.0,0.86]
[1771072169753,0.49915593,2092.1,2091.0,2.571]
[1771072171255,1.96175455,2092.0,2091.1,1.19554301]
[1771072173246,0.76672587,2091.9,2091.1,1.19554301]
[1771072173537,1.9618688,2091.8,2091.1,1.19554301]
[1771072173733,1.19512338,2091.9,2091.1,1.19554301]
[1771072173945,1.19506982,2092.0,2091.1,1.19554301]
[1771072174125,1.96179569,2092.0,2091.1,1.19554301]
[1771072175134,0.76672587,2091.9,2091.1,1.19554301]
[1771072176832,1.96181913,2091.9,2091.1,1.19554301]
[1771072178051,0.76672587,2091.9,2091.1,1.19554301]
[1771072178461,1.96181307,2091.9,2091.1,1.19554301]
[1771072180168,0.76672587,2091.9,2091.1,1.19554301]
[1771072181362,1.30563424,2092.2,2091.1,1.818464]
[1771072181660,0.73218165,2092.1,2091.1,1.818464]
[1771072181868,0.73218165,2092.1,2091.1,1.78976808]
[1771072182489,0.73218165,2092.1,2091.2,0.61970941]
[1771072182792,1.92715528,2092.1,2091.2,0.61970941]
[1771072184294,0.73218165,2092.1,2091.2,0.61970941]
[1771072184484,1.92715666,2092.1,2091.3,1.80959126]
[1771072184960,0.73218165,2092.1,2091.3,1.19542868]
[1771072186293,0.73218165,2092.1,2091.3,1.80322609]
[1771072187567,0.73218165,2092.1,2091.3,1.19542868]
[1771072188097,0.73218165,2092.1,2091.3,1.79689623]
[1771072190775,0.57345259,2092.2,2091.4,0.59517278]
[1771072191088,1.30563424,2092.2,2091.5,1.7]
[1771072191670,0.0011,2092.4,2091.6,0.59203849]
[1771072193310,0.0011,2092.4,2091.7,1.19520007]
[1771072193493,0.0011,2092.4,2091.8,0.861]
[1771072194280,0.73328165,2092.4,2091.8,0.861]
[1771072194617,0.0011,2092.4,2091.8,0.861]
[1771072195180,0.0011,2092.4,2091.9,1.1950858]
[1771072195510,0.0011,2092.4,2092.0,1.699]
[1771072197407,0.0011,2092.4,2092.1,1.19497155]
[1771072198313,0.73328165,2092.4,2092.1,1.19497155]
[1771072199387,0.0011,2092.4,2092.1,1.19497155]
[1771072201804,0.75414185,2092.4,2092.0,2.89402722]
[1771072204830,0.0011,2092.4,2092.0,2.89402722]
[1771072205916,0.0011,2092.4,2092.0,3.4565466]
[1771072206130,0.0011,2092.4,2092.0,2.89402722]
[1771072207018,0.0011,2092.4,2092.0,3.4535068]
[1771072207229,0.0011,2092.4,2092.0,2.89402722]
[1771072207808,0.0011,2092.4,2092.0,3.4504754]
[1771072208027,0.75414185,2092.7,2092.0,3.4504754]
[1771072210106,0.0011,2092.7,2092.2,0.550443]
[1771072210831,0.0011,2092.7,2092.0,2.89402722]
[1771072211240,0.0011,2092.7,2092.0,3.44146374]
[1771072212134,0.0011,2092.7,2092.1,0.54443833]
[1771072212733,0.0011,2092.7,2092.2,1.19491444]
[1771072213234,0.75414185,2092.7,2092.2,1.19491444]
[1771072214438,0.0011,2092.7,2092.2,1.19491444]
[1771072214737,0.75414185,2092.7,2092.2,1.19491444]
[1771072215318,0.75414185,2092.7,2092.1,4.77965777]
[1771072219242,0.75414185,2092.7,2092.1,5.63965777]
[1771072220019,0.0011,2092.7,2092.1,6.16040563]
[1771072221336,0.75414185,2092.7,2092.1,5.63965777]
[1771072224443,0.75414185,2093.0,2092.2,0.50909671]
[1771072224644,0.75414185,2093.0,2092.3,1.70395404]
[1771072224947,0.75414185,2093.0,2092.4,9.02441515]
[1771072226647,0.75414185,2093.0,2092.5,1.19474313]
[1771072227920,1.9486126,2093.0,2092.5,1.19474313]
[1771072228124,0.75304185,2092.9,2092.5,1.19474313]
[1771072229828,0.75304185,2092.9,2092.4,1.713]
[1771072230036,0.75304185,2092.8,2092.4,2.90779659]
[1771072231955,0.69268442,2093.0,2092.4,2.90779659]
[1771072233056,1.19540254,2093.1,2092.4,2.90779659]
[1771072233057,0.69258442,2093.1,2092.5,7.31141515]
[1771072233255,0.69258442,2093.1,2092.4,2.90779659]
[1771072233957,0.69158442,2093.0,2092.4,2.90779659]
[1771072238861,0.69158442,2092.9,2092.4,2.90779659]
[1771072241085,0.67521393,2092.8,2092.4,1.713]
[1771072241380,0.67521393,2092.8,2092.4,2.90778246]
[1771072242073,0.67521393,2092.8,2092.4,2.90779799]
[1771072242241,0.67521393,2092.8,2092.4,1.713]
[1771072242571,0.67521393,2092.8,2092.4,2.9077981]
[1771072243751,0.67521393,2092.7,2092.4,1.713]
[1771072244055,0.67521393,2092.7,2092.2,1.722]
[1771072245168,0.67521393,2092.7,2091.8,0.001]
[1771072245169,0.67521393,2092.6,2091.8,0.001]
[1771072245355,0.67521393,2092.6,2091.8,1.723]
[1771072245665,0.67521393,2092.4,2091.8,1.723]
[1771072245837,0.67521393,2092.2,2091.8,1.723]
[1771072246039,0.67521393,2092.2,2091.6,0.001]
[1771072246240,0.67521393,2092.2,2091.6,1.723]
[1771072246777,0.67521393,2092.2,2091.9,0.001]
[1771072246994,0.67521393,2092.2,2091.6,1.723]
[1771072247176,0.67521393,2092.2,2091.2,2.21039204]
[1771072247671,0.67521393,2092.1,2091.2,2.21039204]
[1771072248038,0.67521393,2092.1,2091.0,1.721]
[1771072248039,0.67521393,2091.9,2091.0,1.721]
[1771072248239,0.67521393,2091.9,2091.0,2.40529098]
[1771072248741,0.67521393,2091.9,2090.9,0.86]
[1771072248941,0.67521393,2091.7,2090.9,0.86]
[1771072249945,0.67521393,2091.5,2090.9,0.86]
[1771072250152,0.67521393,2091.5,2090.7,0.68539098]
[1771072250455,0.67521393,2091.5,2090.7,0.0011]
[1771072251270,0.67521393,2091.5,2090.6,0.001]
[1771072251476,0.67521393,2091.4,2090.6,0.001]
[1771072251679,0.67521393,2091.2,2090.6,0.001]
[1771072251982,1.87075694,2091.1,2090.6,0.001]
[1771072252197,1.19554301,2091.1,2090.6,0.001]
[1771072252407,4.78217206,2091.2,2090.6,7.31241515]
[1771072252408,1.19552849,2091.2,2090.6,7.31241515]
[1771072252560,1.53521393,2091.8,2091.0,7.31141515]
[1771072252761,2.32221393,2091.7,2091.0,7.31141515]
[1771072253108,0.67521393,2091.6,2090.8,0.68429098]
[1771072254256,1.87052829,2091.5,2090.8,0.68429098]
[1771072254683,0.67521393,2091.6,2090.8,1.87999729]
[1771072255079,1.87039148,2091.8,2090.9,0.68429098]
[1771072255289,2.84112221,2091.9,2090.9,0.68429098]
[1771072255871,1.19512221,2091.9,2091.1,0.68429098]
[1771072256087,1.87024261,2092.0,2091.3,1.19542868]
[1771072256287,3.51524261,2092.0,2091.2,1.87973397]
[1771072256589,0.67521393,2092.0,2091.2,1.87973397]
[1771072257293,0.67521393,2092.0,2091.2,0.68429098]
[1771072257474,0.67521393,2092.0,2091.2,0.66037498]
[1771072258589,1.87029973,2091.9,2091.1,1.19554067]
[1771072258762,0.67521393,2091.8,2091.0,1.87985091]
[1771072258965,0.67521393,2091.8,2091.1,3.054]
[1771072259661,0.67521393,2091.8,2091.0,1.87985091]
[1771072259662,1.644,2092.2,2091.2,0.68429098]
[1771072259882,0.67521393,2092.1,2091.2,0.68429098]
[1771072260795,1.87024261,2092.0,2091.3,1.19542868]
[1771072261389,2.5415729,2092.1,2091.3,2.07599066]
[1771072261696,3.73654484,2092.1,2091.3,2.07599066]
[1771072263294,0.8985729,2092.1,2091.3,2.07599066]
[1771072263461,3.73556137,2092.1,2091.3,2.07599066]
[1771072263668,0.8985729,2092.0,2091.3,1.19542868]
[1771072263868,0.8985729,2092.0,2091.2,1.19548584]
[1771072264170,0.8985729,2091.9,2091.2,1.19548584]
[1771072265284,0.8985729,2091.8,2091.0,1.19555647]
[1771072265479,0.8985729,2091.8,2091.1,0.88056198]
[1771072266815,0.8985729,2091.8,2091.0,1.19555647]
[1771072267481,0.8985729,2091.6,2091.0,1.19555647]
[1771072268102,0.8985729,2092.1,2091.1,0.88056198]
[1771072268282,1.641,2091.9,2091.1,0.88056198]
[1771072268803,1.64,2092.0,2091.1,0.88056198]
[1771072269168,0.8985729,2092.1,2091.1,0.88056198]
[1771072269498,1.64,2092.0,2091.1,0.88056198]
[1771072269671,0.8985729,2092.1,2091.3,0.88056198]
[1771072271375,2.5375729,2092.1,2091.3,0.88056198]
[1771072271809,2.5375729,2092.1,2091.4,1.19537152]
[1771072272303,0.8985729,2092.0,2091.4,1.19537152]
[1771072273219,0.8985729,2092.0,2091.1,1.19554301]
[1771072273980,0.8985729,2091.9,2091.1,1.19554301]
[1771072274908,0.8985729,2091.9,2091.1,2.07610499]
[1771072276107,2.09364649,2092.0,2091.1,2.07610499]
[1771072276278,0.8985729,2091.9,2091.1,2.07610499]
[1771072276698,0.8985729,2091.8,2091.1,2.07610499]
[1771072277706,0.8985729,2091.8,2091.1,1.19554301]
[1771072278073,2.09374962,2091.8,2091.0,0.88056198]
[1771072278277,1.19517672,2091.8,2091.0,0.88056198]
[1771072278483,0.8985729,2091.7,2091.0,0.88056198]
[1771072279836,0.8985729,2091.8,2091.0,0.88056198]
[1771072280186,0.8985729,2091.8,2091.1,1.19554301]
[1771072281522,0.8985729,2091.8,2091.1,2.07610499]
[1771072284418,1.634,2091.9,2091.3,1.19542868]
[1771072284621,1.634,2091.9,2091.3,2.07599066]
[1771072284789,2.5325729,2091.9,2091.3,2.07599066]
[1771072284997,2.5325729,2091.9,2091.3,1.19542868]
[1771072285618,0.8985729,2091.8,2091.3,1.19542868]
[1771072286197,1.634,2091.9,2091.3,1.19542868]
[1771072286398,0.8996729,2092.1,2091.5,1.19531436]
[1771072286597,1.633,2092.0,2091.5,1.19531436]
[1771072286831,2.5315729,2092.0,2091.5,1.19531436]
[1771072287420,0.8985729,2091.9,2091.5,1.19531436]
[1771072287916,0.8985729,2091.9,2091.4,4.78125747]
[1771072288117,0.8985729,2091.9,2091.5,1.19531436]
[1771072289333,0.8985729,2091.9,2091.3,1.19542868]
[1771072289629,0.8985729,2091.9,2091.3,2.07599066]
[1771072292237,0.0011,2092.1,2091.4,0.83189811]
[1771072293811,0.0011,2092.3,2091.8,0.83189811]
[1771072295111,0.8621,2092.8,2091.8,0.83189811]
[1771072295112,0.0011,2092.8,2091.8,0.83189811]
[1771072295307,0.77647276,2092.7,2091.8,0.83189811]
[1771072295830,0.77647276,2092.7,2092.0,0.83189811]
[1771072297623,0.0011,2092.8,2092.0,0.83189811]
[1771072297826,0.0011,2092.8,2092.1,1.19497155]
[1771072298026,0.0011,2092.8,2092.2,0.83189811]
[1771072298235,0.7921704,2092.8,2092.2,0.83189811]
[1771072299441,0.0011,2092.8,2092.2,0.83189811]
[1771072299955,0.0011,2092.8,2092.3,1.19485733]
[1771072300114,0.78525396,2092.8,2092.3,1.19485733]
[1771072302283,0.0011,2092.8,2092.3,0.87234323]
[1771072303540,0.77495095,2092.8,2092.2,4.77942933]
[1771072304147,0.77495095,2092.8,2092.1,1.19491444]
[1771072305826,0.77495095,2092.8,2092.1,2.06725767]
[1771072306754,0.77495095,2092.8,2092.0,5.65177256]
[1771072306954,0.77495095,2092.8,2092.1,7.31363217]
[1771072307559,0.77495095,2092.8,2092.1,8.1859754]
[1771072308667,0.77495095,2092.8,2092.2,0.87234323]
[1771072309169,0.77495095,2092.8,2092.3,1.19485733]
[1771072310940,0.0011,2092.8,2092.3,1.19485733]
[1771072311141,0.0011,2092.8,2092.3,2.06720056]
[1771072311341,0.0011,2092.8,2092.3,1.19485733]
[1771072313264,0.0011,2092.8,2092.3,2.06720056]
[1771072313444,0.0011,2092.8,2092.3,1.19485733]
[1771072313646,0.74121877,2092.8,2092.3,1.19485733]
[1771072315355,0.0011,2092.8,2092.3,2.06720056]
[1771072315563,0.0011,2092.8,2092.3,1.19485733]
[1771072315768,0.73458342,2092.8,2092.3,1.19485733]
[1771072317576,0.73458342,2092.8,2092.1,1.19497155]
[1771072319691,1.19567297,2092.8,2092.1,1.19497155]
[1771072319896,0.72032193,2092.7,2092.1,1.19497155]
[1771072320262,0.71705415,2092.6,2091.8,1.19514293]
[1771072320745,0.71705415,2092.5,2091.8,1.19514293]
[1771072321781,0.71379535,2092.3,2091.7,0.001]
[1771072324695,0.70407253,2092.2,2091.7,0.001]
[1771072326359,0.69763504,2092.0,2091.7,0.001]
[1771072328376,0.69123279,2091.8,2091.7,0.001]
[1771072330892,0.69123279,2091.8,2090.8,0.001]
[1771072331194,0.69123279,2091.8,2090.8,1.19671213]
[1771072331195,0.68169503,2091.6,2090.8,1.19671213]
[1771072331358,1.627,2091.6,2090.9,0.81428802]
[1771072331559,0.24772058,2091.9,2090.9,0.81428802]
[1771072331787,1.627,2091.8,2090.9,0.81428802]
[1771072332502,2.40262763,2091.8,2090.9,0.81428802]
[1771072332866,1.9708277,2091.7,2091.0,1.19560019]
[1771072333068,1.9708277,2091.7,2090.9,2.00990924]
[1771072333893,0.77562763,2091.6,2090.9,1.19562122]
[1771072334396,0.77562763,2091.6,2090.8,2.01097697]
[1771072334570,0.77562763,2091.6,2090.8,0.001]
[1771072334776,0.77562763,2091.5,2090.8,0.001]
[1771072335293,1.97022643,2091.4,2090.8,0.001]
[1771072335686,0.77485491,2091.6,2090.9,0.81428802]
[1771072335886,0.77485491,2091.6,2090.8,0.001]
[1771072336181,0.77146079,2091.7,2090.9,0.81428802]
[1771072336364,0.77146079,2091.7,2090.8,0.81528802]
[1771072338298,0.77146079,2091.7,2091.0,0.81428802]
[1771072338628,0.76470057,2091.6,2090.8,2.01096223]
[1771072339182,1.19520648,2091.7,2090.9,0.81428802]
[1771072339389,1.95652142,2091.8,2090.9,0.81428802]
[1771072339711,1.6,2091.6,2090.9,0.81428802]
[1771072339897,0.75797752,2091.7,2090.9,0.81428802]
[1771072342920,1.94321933,2091.6,2090.8,1.19667421]
[1771072343239,0.74796212,2091.5,2090.8,1.19667421]
[1771072344931,1.19537152,2091.4,2090.8,1.19667421]
[1771072345096,0.74133097,2091.3,2090.8,0.001]
[1771072346921,1.19548584,2091.2,2090.8,0.001]
[1771072347520,0.74133097,2091.3,2090.8,0.001]
[1771072347724,1.9367632,2091.3,2090.8,0.001]
[1771072347918,0.73145235,2091.8,2090.8,0.001]
[1771072348221,0.73145235,2091.7,2090.8,0.001]
[1771072348419,1.621,2091.9,2090.8,0.81528802]
[1771072348590,2.33145235,2091.6,2090.8,0.81528802]
[1771072348792,0.73145235,2091.6,2090.8,0.81528802]
[1771072349195,0.73145235,2091.6,2090.8,0.001]
[1771072349196,0.72817752,2091.4,2090.8,0.001]
[1771072351320,0.72165477,2091.3,2090.8,0.001]
[1771072351730,3.53697465,2091.5,2090.8,0.001]
[1771072351903,1.9136368,2091.7,2090.9,0.7803133]
[1771072352296,0.71840678,2091.6,2090.8,0.001]
[1771072353407,0.71516769,2091.4,2090.8,0.001]
[1771072353726,0.71516769,2091.3,2090.8,0.001]
[1771072354344,0.71516769,2091.3,2090.7,0.001]
[1771072354345,0.71193746,2091.1,2090.6,0.001]
[1771072355423,0.70871607,2090.9,2090.5,0.63991049]
[1771072355827,1.19560019,2091.0,2090.5,0.63991049]
[1771072356139,1.90116308,2091.0,2090.5,0.63991049]